fUST/lending_fUST_20250308
["ID","MTS","AMOUNT","RATE_DAILY","PERIOD"]
[355659180,1741444150112,-416.66666667,0.00028,3]
[355659181,1741444150134,-165.49828204,0.00035,2]
[355659182,1741444150155,-1653.15732775,0.00042,120]
[355659183,1741444150177,-180.02199283,0.000429,120]
[355659184,1741444150198,-1213.56,0.0004299,10]
[355659185,1741444150221,-1011.3,0.0004299,10]
[355659186,1741444150241,-70749.21461266,0.00043,7]
[355659187,1741444151067,-60003.47394591,0.00043,7]
[355659188,1741444156103,-5471.75245185,0.00043,7]
[355659189,1741444160585,200.0,0.00043034,90]
[355659221,1741444232474,-212.44904473,0.000455,2]
[355659222,1741444232485,-34014.39868639,0.00047782,120]
[355659232,1741444238388,-4124.27379606,0.00047782,120]
[355659233,1741444238397,-1000.0,0.00047789,6]
[355659234,1741444238407,-1367.85792112,0.000479,11]
[355659235,1741444238417,-1000.0,0.00047926,6]
[355659236,1741444238427,-1000.0,0.00047999,120]
[355659237,1741444238437,-157.30903391,0.0004803,2]
[355659238,1741444238447,-1000.0,0.00048063,6]
[355659239,1741444238457,-416.66666667,0.00048076,2]
[355659240,1741444238468,-658.9,0.000481,10]
[355659241,1741444238478,-151.0,0.00048101,2]
[355659242,1741444238488,-600.0,0.00048101,2]
[355659243,1741444238498,-948.81,0.00048108,10]
[355659244,1741444238507,-790.68,0.00048108,10]
[355659245,1741444238516,-500.0,0.00048109,2]
[355659246,1741444238526,-500.0,0.00048109,2]
[355659247,1741444238536,-500.0,0.00048109,2]
[355659248,1741444238546,-500.0,0.00048109,2]
[355659249,1741444238555,-500.0,0.00048109,2]
[355659250,1741444238564,-500.0,0.00048109,2]
[355659251,1741444238574,-500.0,0.00048109,2]
[355659252,1741444238583,-500.0,0.00048109,2]
[355659253,1741444238593,-500.0,0.00048109,2]
[355659254,1741444238602,-500.0,0.00048109,2]
[355659255,1741444238612,-500.0,0.00048109,2]
[355659256,1741444238621,-500.0,0.00048109,2]
[355659257,1741444238631,-500.0,0.00048109,2]
[355659258,1741444238640,-548.09380089,0.00048109,2]
[355659259,1741444238650,-500.0,0.00048109,2]
[355659260,1741444238660,-500.0,0.00048109,2]
[355659261,1741444238669,-500.0,0.00048109,2]
[355659262,1741444238679,-500.0,0.00048109,2]
[355659263,1741444238688,-500.0,0.00048109,2]
[355659264,1741444238698,-500.0,0.00048109,2]
[355659265,1741444238707,-500.0,0.00048109,2]
[355659266,1741444238716,-7628.44043918,0.0004811,120]
[355659267,1741444238726,-7628.44043918,0.0004811,120]
[355659268,1741444238737,-7628.44043918,0.0004811,120]
[355659269,1741444238747,-7628.44043918,0.0004811,120]
[355659270,1741444238757,-7628.44043918,0.0004811,120]
[355659271,1741444238766,-7628.44043918,0.0004811,120]
[355659272,1741444238776,-7628.44043918,0.0004811,120]
[355659273,1741444238786,-7628.44043918,0.0004811,120]
[355659274,1741444238795,-7628.44043918,0.0004811,120]
[355659275,1741444238805,-7628.44043918,0.0004811,120]
[355659276,1741444238814,-163.56,0.0004811,30]
[355659277,1741444238823,-817.81,0.0004811,30]
[355659278,1741444238833,-14050.5508571,0.0004811,4]
[355659279,1741444238843,-14050.5508571,0.0004812,4]
[355659280,1741444238852,-599.0,0.0004812,120]
[355659281,1741444238862,-599.0,0.0004812,120]
[355659282,1741444238872,-599.0,0.0004812,120]
[355659283,1741444238881,-526.55257956,0.0004812,120]
[355659284,1741444238891,-70252.7542855,0.0004812,4]
[355659285,1741444238901,-157.30903389,0.00048123,2]
[355659286,1741444238913,-216.69,0.00048129,30]
[355659287,1741444238923,-1555.46,0.00048129,120]
[355659288,1741444238934,-7628.44043918,0.0004813,120]
[355659289,1741444238944,-7628.44043918,0.0004813,120]
[355659290,1741444238955,-7628.44043918,0.0004813,120]
[355659291,1741444238967,-7628.44043918,0.0004813,120]
[355659292,1741444238977,-7628.44043918,0.0004813,120]
[355659293,1741444238986,-7628.44043918,0.0004813,120]
[355659294,1741444238995,-7628.44043918,0.0004813,120]
[355659295,1741444239005,-7628.44043918,0.0004813,120]
[355659296,1741444239015,-7628.44043918,0.0004813,120]
[355659297,1741444239024,-7628.44043918,0.0004813,120]
[355659298,1741444239034,-217127.58603445,0.0004813,2]
[355659299,1741444239044,-500.0,0.00048173,10]
[355659300,1741444239053,-500.0,0.00048173,10]
[355659301,1741444239063,-634.91320948,0.00048173,10]
[355659302,1741444239072,-166.09873753,0.00048173,10]
[355659303,1741444239082,-458.81781912,0.00048173,3]
[355659304,1741444239092,-161.97099328,0.00048173,10]
[355659305,1741444239102,-500.0,0.00048173,2]
[355659306,1741444239112,-501.59658546,0.00048173,10]
[355659307,1741444239123,-500.0,0.00048173,10]
[355659308,1741444239133,-258.7279871,0.00048173,10]
[355659309,1741444239142,-500.0,0.00048173,10]
[355659310,1741444239152,-1000.0,0.000482,6]
[355659311,1741444239163,-157.30903389,0.00048215,2]
[355659312,1741444239172,-151.0,0.0004823,120]
[355659313,1741444239185,-151.0,0.0004823,120]
[355659314,1741444239195,-151.0,0.0004823,120]
[355659315,1741444239205,-151.0,0.0004823,120]
[355659316,1741444239214,-151.0,0.0004823,120]
[355659317,1741444239223,-151.0,0.0004823,120]
[355659318,1741444239233,-186.510752,0.0004823,120]
[355659319,1741444239242,-500.0,0.00048273,10]
[355659320,1741444239251,-4007.87309821,0.000483,120]
[355659321,1741444239260,-157.30903389,0.00048308,2]
[355659322,1741444239269,-698.8580003,0.00048328,4]
[355659323,1741444239278,-1000.0,0.00048337,6]
[355659324,1741444239288,-500.0,0.00048373,10]
[355659325,1741444239297,-2032.76829364,0.00048379,30]
[355659326,1741444239305,-28101.1017142,0.0004838,4]
[355659327,1741444239314,-55555.0,0.0004839,120]
[355659328,1741444239323,-3000.0,0.000484,2]
[355659329,1741444239333,-1000.0,0.000484,60]
[355659330,1741444239342,-151.0,0.000484,26]
[355659331,1741444239351,-11640.76331549,0.000484,2]
[355659332,1741444239360,-157.30903389,0.000484,2]
[355659333,1741444239369,-155.103573,0.00048461,120]
[355659334,1741444239381,-14050.5508571,0.0004847,4]
[355659335,1741444239389,-500.0,0.00048473,10]
[355659336,1741444239399,-500.0,0.00048473,2]
[355659337,1741444239408,-502.82758277,0.00048473,10]
[355659338,1741444239419,-500.0,0.00048473,10]
[355659339,1741444239428,-500.0,0.00048473,10]
[355659340,1741444239437,-500.0,0.00048473,10]
[355659341,1741444239446,-607.92363618,0.00048473,10]
[355659342,1741444239455,-500.0,0.00048473,10]
[355659343,1741444239464,-500.0,0.00048473,10]
[355659344,1741444239475,-500.0,0.00048473,10]
[355659345,1741444239484,-500.0,0.00048473,10]
[355659346,1741444239493,-152.32538602,0.00048473,10]
[355659347,1741444239502,-500.0,0.00048473,10]
[355659348,1741444239511,-500.0,0.00048473,10]
[355659349,1741444239520,-160.36975611,0.00048473,2]
[355659350,1741444239530,-500.0,0.00048473,10]
[355659351,1741444239540,-28101.1017142,0.0004848,4]
[355659352,1741444239550,-5000.0,0.0004849,60]
[355659353,1741444239559,-4423.369061,0.0004849,60]
[355659354,1741444239568,-56202.2034284,0.0004849,4]
[355659355,1741444239578,-1999.96,0.00048498,120]
[355659356,1741444239587,-23291.54359246,0.000485,42]
[355659357,1741444239597,-3097.65815369,0.000485,42]
[355659358,1741444239606,-1886005.38476292,0.000485,120]
[355659359,1741444239617,-250.0,0.000485,14]
[355659360,1741444239627,-151.0,0.000485,25]
[355659361,1741444239636,-151.0,0.000485,120]
[355659362,1741444239645,-151.0,0.000485,120]
[355659363,1741444239655,-151.0,0.000485,120]
[355659364,1741444239665,-151.0,0.000485,120]
[355659365,1741444239674,-635.891438,0.000485,120]
[355659366,1741444239683,-635.891438,0.000485,120]
[355659367,1741444239693,-151.595689,0.000485,120]
[355659368,1741444239703,-151.0,0.000485,30]
[355659369,1741444239712,-265.864389,0.000485,30]
[355659370,1741444239722,-151.0,0.000485,120]
[355659371,1741444239731,-151.0,0.000485,120]
[355659372,1741444239741,-151.0,0.000485,120]
[355659373,1741444239751,-1551.426964,0.000485,120]
[355659374,1741444239761,-151.0,0.000485,120]
[355659375,1741444239770,-151.0,0.000485,120]
[355659376,1741444239780,-1551.426964,0.000485,120]
[355659377,1741444239790,-1486.9664537,0.00048504,120]
[355659378,1741444239801,-500.0,0.00048519,100]
[355659379,1741444239811,-3824.24803612,0.00048527,120]
[355659380,1741444239821,-423.94777246,0.0004853,120]
[355659381,1741444239830,-1486.9664537,0.0004853,120]
[355659382,1741444239839,-2788.77006534,0.00048534,120]
[355659383,1741444239849,-2788.77006534,0.00048554,120]
[355659384,1741444239858,-423.94777246,0.00048556,120]
[355659385,1741444239868,-423.94777246,0.00048559,120]
[355659386,1741444239877,-2841.310776,0.0004856,120]
[355659387,1741444239887,-2841.310776,0.00048564,120]
[355659388,1741444239896,-1486.9664537,0.00048568,120]
[355659389,1741444239906,-423.94777246,0.0004857,120]
[355659390,1741444239915,-1486.9664537,0.0004857,120]
[355659391,1741444239924,-2841.310776,0.00048574,120]
[355659392,1741444239934,-2788.77006534,0.00048578,120]
[355659393,1741444239944,-2788.77006534,0.00048582,120]
[355659394,1741444239953,-3824.24803612,0.00048591,120]
[355659395,1741444239963,-2841.310776,0.00048596,120]
[355659396,1741444239973,-3824.24803612,0.00048596,120]
[355659397,1741444239982,-3824.24803612,0.00048598,120]
[355659405,1741444240099,-2500.0,0.000486,120]
[355659406,1741444240110,-500.0,0.00048619,96]
[355659407,1741444240120,-352.0,0.00048622,30]
[355659408,1741444240130,-352.0,0.00048622,30]
[355659409,1741444240139,-352.0,0.00048622,30]
[355659410,1741444240149,-352.0,0.00048622,30]
[355659411,1741444240159,-352.0,0.00048622,30]
[355659412,1741444240168,-352.0,0.00048622,30]
[355659413,1741444240178,-352.0,0.00048622,30]
[355659414,1741444240188,-352.0,0.00048622,30]
[355659415,1741444240197,-316.0,0.00048622,30]
[355659416,1741444240207,-352.0,0.00048622,30]
[355659417,1741444240216,-316.0,0.00048622,30]
[355659418,1741444240227,-316.0,0.00048622,30]
[355659419,1741444240236,-352.0,0.00048622,30]
[355659420,1741444240246,-321.46638058,0.00048622,30]
[355659421,1741444240256,-352.0,0.00048622,30]
[355659422,1741444240266,-352.0,0.00048622,30]
[355659423,1741444240275,-352.0,0.00048622,30]
[355659424,1741444240285,-352.0,0.00048622,30]
[355659425,1741444240298,-352.0,0.00048622,30]
[355659426,1741444240307,-352.0,0.00048622,30]
[355659428,1741444240317,-352.0,0.00048622,30]
[355659429,1741444240327,-352.0,0.00048622,30]
[355659430,1741444240336,-352.0,0.00048622,30]
[355659431,1741444240346,-352.0,0.00048622,30]
[355659432,1741444240356,-352.0,0.00048622,30]
[355659433,1741444240366,-352.0,0.00048622,30]
[355659434,1741444240375,-491.03717399,0.00048622,30]
[355659435,1741444240391,-622.2,0.00048649,2]
[355659436,1741444240401,-741.84601759,0.00048657,2]
[355659437,1741444240411,-500.0,0.00048719,100]
[355659438,1741444240420,-443.473,0.00048733,2]
[355659439,1741444240430,-500.0,0.00048819,100]
[355659440,1741444240440,-3170.92371641,0.00048871,2]
[355659441,1741444240449,-29999.999999,0.000489,2]
[355659442,1741444240460,-500.0,0.00048919,90]
[355659443,1741444240469,-1555.46,0.00048951,120]
[355659444,1741444240479,-500.0,0.00048973,10]
[355659445,1741444240488,-500.0,0.00048973,2]
[355659446,1741444240498,-500.0,0.00048973,10]
[355659447,1741444240508,-500.0,0.00048973,10]
[355659448,1741444240518,-250.89217317,0.00048973,10]
[355659449,1741444240528,-516.07783657,0.00048973,2]
[355659450,1741444240538,-500.0,0.00048973,10]
[355659451,1741444240547,-150.0,0.00048973,10]
[355659452,1741444240556,-489327.17052317,0.0004898,30]
[355659453,1741444240566,-151.0,0.0004898,30]
[355659454,1741444240576,-155.146904,0.0004898,120]
[355659455,1741444240586,-151.0,0.0004898,120]
[355659456,1741444240597,-1000.0,0.00049,120]
[355659457,1741444240607,-2038.90074751,0.00049,120]
[355659458,1741444240616,-617.55481849,0.00049,120]
[355659459,1741444240626,-144856.67408324,0.00049,120]
[355659460,1741444240635,-8467.76206172,0.00049,120]
[355659461,1741444240644,-7263.0,0.00049,2]
[355659462,1741444240654,-382.61157556,0.00049,120]
[355659463,1741444240663,-500.0,0.00049019,96]
[355659464,1741444240673,-500.0,0.00049119,91]
[355659465,1741444240683,-800.0,0.00049171,14]
[355659466,1741444240692,-645.2214,0.00049197,2]
[355659467,1741444240701,-500.0,0.00049219,99]
[355659468,1741444240710,-800.0,0.00049231,14]
[355659469,1741444240720,-1295.176433,0.0004928,21]
[355659470,1741444240729,-814.20429918,0.00049287,14]
[355659473,1741444240739,-1000.0,0.000493,21]
[355659475,1741444240748,-800.0,0.000493,14]
[355659477,1741444240758,-500.095823,0.000493,114]
[355659479,1741444240768,-2500.0,0.000493,120]
[355659480,1741444240778,-159.781725,0.00049315,120]
[355659481,1741444240787,-151.0,0.00049315,120]
[355659482,1741444240798,-151.0,0.00049315,120]
[355659483,1741444240808,-151.0,0.00049315,120]
[355659484,1741444240819,-151.0,0.00049315,120]
[355659485,1741444240830,-151.0,0.00049315,120]
[355659486,1741444240839,-151.0,0.00049315,120]
[355659487,1741444240849,-151.0,0.00049315,120]
[355659488,1741444240859,-151.0,0.00049315,110]
[355659489,1741444240868,-577.52857,0.00049315,120]
[355659490,1741444240877,-151.0,0.00049315,120]
[355659491,1741444240888,-151.000001,0.00049315,120]
[355659492,1741444240898,-291.148032,0.00049315,120]
[355659493,1741444240908,-285.78188656,0.00049315,2]
[355659494,1741444240918,-151.0,0.00049315,120]
[355659495,1741444240928,-151.0,0.00049315,120]
[355659496,1741444240939,-500.0,0.00049315,120]
[355659497,1741444240950,-500.0,0.00049315,120]
[355659498,1741444240959,-151.0,0.00049315,120]
[355659499,1741444240969,-151.0,0.00049315,120]
[355659500,1741444240978,-500.0,0.00049315,120]
[355659501,1741444240988,-500.0,0.00049315,120]
[355659502,1741444240997,-500.0,0.00049315,120]
[355659503,1741444241007,-500.0,0.00049315,120]
[355659504,1741444241016,-500.0,0.00049315,120]
[355659505,1741444241026,-151.0,0.00049315,120]
[355659506,1741444241036,-500.0,0.00049315,120]
[355659507,1741444241047,-500.0,0.00049315,120]
[355659508,1741444241056,-500.0,0.00049315,120]
[355659509,1741444241066,-500.0,0.00049315,120]
[355659510,1741444241076,-537.12330089,0.00049315,120]
[355659511,1741444241086,-500.0,0.00049315,120]
[355659512,1741444241096,-333.0737851,0.00049315,120]
[355659513,1741444241105,-500.0,0.00049315,120]
[355659514,1741444241115,-393.42681778,0.00049315,120]
[355659515,1741444241125,-500.0,0.00049315,120]
[355659516,1741444241134,-500.0,0.00049315,120]
[355659517,1741444241144,-500.0,0.00049315,120]
[355659518,1741444241154,-151.0,0.00049315,120]
[355659519,1741444241165,-500.0,0.00049315,120]
[355659520,1741444241174,-500.0,0.00049315,120]
[355659521,1741444241184,-151.0,0.00049315,120]
[355659522,1741444241194,-500.0,0.00049315,120]
[355659523,1741444241203,-500.0,0.00049315,120]
[355659524,1741444241213,-500.0,0.00049315,120]
[355659525,1741444241223,-833.33,0.00049315,2]
[355659526,1741444241232,-685.84,0.00049315,120]
[355659527,1741444241242,-500.0,0.00049315,120]
[355659528,1741444241252,-500.0,0.00049315,2]
[355659529,1741444241262,-151.0,0.00049315,120]
[355659530,1741444241271,-510.39131851,0.00049315,120]
[355659531,1741444241281,-554.21590053,0.00049315,120]
[355659532,1741444241290,-500.0,0.00049315,120]
[355659533,1741444241300,-500.0,0.00049315,120]
[355659534,1741444241309,-590.23,0.00049315,120]
[355659535,1741444241319,-1641.94,0.00049315,120]
[355659536,1741444241328,-1641.94,0.00049315,120]
[355659537,1741444241338,-1641.94,0.00049315,120]
[355659538,1741444241347,-1641.94,0.00049315,120]
[355659539,1741444241357,-1641.94,0.00049315,120]
[355659540,1741444241367,-1641.94,0.00049315,120]
[355659541,1741444241380,-1641.94,0.00049315,120]
[355659542,1741444241390,-1641.94,0.00049315,120]
[355659543,1741444241400,-1641.94,0.00049315,120]
[355659544,1741444241416,-1641.94,0.00049315,120]
[355659545,1741444241426,-1641.94,0.00049315,120]
[355659546,1741444241436,-1641.94,0.00049315,120]
[355659547,1741444241446,-1641.94,0.00049315,120]
[355659548,1741444241455,-1641.94,0.00049315,120]
[355659549,1741444241467,-1641.94,0.00049315,120]
[355659550,1741444241477,-1641.94,0.00049315,120]
[355659551,1741444241486,-1641.94,0.00049315,120]
[355659552,1741444241496,-1641.94,0.00049315,120]
[355659553,1741444241505,-1641.94,0.00049315,120]
[355659554,1741444241514,-1641.94,0.00049315,120]
[355659555,1741444241524,-1641.94,0.00049315,120]
[355659556,1741444241534,-1641.94,0.00049315,120]
[355659557,1741444241544,-1641.94,0.00049315,120]
[355659558,1741444241554,-1642.04832079,0.00049315,120]
[355659559,1741444241563,-801.55,0.00049315,120]
[355659560,1741444241573,-500.0,0.00049315,120]
[355659561,1741444241583,-500.0,0.00049315,120]
[355659562,1741444241592,-500.0,0.00049315,120]
[355659563,1741444241601,-500.0,0.00049315,120]
[355659564,1741444241611,-222.827466,0.00049315,120]
[355659565,1741444241621,-500.0,0.00049315,120]
[355659566,1741444241630,-235.2246693,0.00049315,120]
[355659567,1741444241640,-520.18476513,0.00049315,120]
[355659568,1741444241649,-500.0,0.00049315,120]
[355659569,1741444241659,-500.0,0.00049315,5]
[355659570,1741444241668,-535.74191994,0.00049315,120]
[355659571,1741444241677,-516.93947988,0.00049315,120]
[355659572,1741444241686,-500.0,0.00049315,120]
[355659573,1741444241696,-450.83335965,0.00049315,120]
[355659574,1741444241705,-879.37,0.00049315,120]
[355659575,1741444241715,-879.37,0.00049315,120]
[355659576,1741444241724,-879.37,0.00049315,120]
[355659577,1741444241733,-879.37,0.00049315,120]
[355659578,1741444241743,-879.37,0.00049315,120]
[355659579,1741444241752,-879.37,0.00049315,120]
[355659580,1741444241762,-879.37,0.00049315,120]
[355659581,1741444241771,-879.37,0.00049315,120]
[355659582,1741444241781,-879.37,0.00049315,120]
[355659583,1741444241791,-879.37,0.00049315,120]
[355659584,1741444241801,-879.37,0.00049315,120]
[355659585,1741444241810,-879.37,0.00049315,120]
[355659586,1741444241819,-879.37,0.00049315,120]
[355659587,1741444241829,-533.54438792,0.00049315,120]
[355659588,1741444241838,-879.37,0.00049315,120]
[355659589,1741444241847,-879.37,0.00049315,120]
[355659590,1741444241856,-879.37,0.00049315,120]
[355659591,1741444241866,-879.37,0.00049315,120]
[355659592,1741444241875,-879.37,0.00049315,120]
[355659593,1741444241885,-879.37,0.00049315,120]
[355659594,1741444241895,-879.37,0.00049315,120]
[355659595,1741444241905,-300.554448,0.00049315,120]
[355659596,1741444241915,-879.37,0.00049315,120]
[355659597,1741444241924,-879.37,0.00049315,120]
[355659598,1741444241934,-879.37,0.00049315,120]
[355659599,1741444241944,-879.38935448,0.00049315,120]
[355659600,1741444241953,-322.06144267,0.00049315,5]
[355659601,1741444241963,-151.0,0.00049315,120]
[355659602,1741444241973,-151.0,0.00049315,120]
[355659603,1741444241982,-564.24398665,0.00049315,120]
[355659604,1741444241991,-530.95530588,0.00049315,120]
[355659605,1741444242002,-156.456156,0.00049315,120]
[355659606,1741444242011,-500.0,0.00049315,120]
[355659607,1741444242022,-151.0,0.00049315,120]
[355659608,1741444242031,-500.0,0.00049315,120]
[355659609,1741444242042,-500.0,0.00049315,120]
[355659610,1741444242053,-500.0,0.00049315,120]
[355659611,1741444242063,-500.0,0.00049315,120]
[355659612,1741444242073,-151.0,0.00049315,120]
[355659613,1741444242083,-517.52283314,0.00049315,120]
[355659614,1741444242092,-500.0,0.00049315,120]
[355659615,1741444242102,-500.0,0.00049315,120]
[355659616,1741444242111,-500.0,0.00049315,120]
[355659617,1741444242121,-500.0,0.00049315,120]
[355659618,1741444242130,-151.0,0.00049315,120]
[355659619,1741444242139,-151.0,0.00049315,120]
[355659620,1741444242148,-513.97387247,0.00049315,120]
[355659621,1741444242158,-314.50886071,0.00049315,120]
[355659622,1741444242167,-500.0,0.00049315,120]
[355659623,1741444242177,-511.00117257,0.00049315,120]
[355659624,1741444242186,-1202.25,0.00049315,120]
[355659625,1741444242196,-3229.98,0.00049315,120]
[355659626,1741444242205,-151.0,0.00049315,90]
[355659627,1741444242215,-574.88,0.00049315,120]
[355659628,1741444242224,-500.0,0.00049315,120]
[355659629,1741444242234,-833.51,0.00049315,120]
[355659630,1741444242243,-833.51,0.00049315,120]
[355659631,1741444242337,-833.51,0.00049315,120]
[355659632,1741444242347,-833.51,0.00049315,120]
[355659633,1741444242356,-833.51,0.00049315,120]
[355659634,1741444242365,-500.0,0.00049315,120]
[355659635,1741444242376,-833.51,0.00049315,120]
[355659636,1741444242388,-833.51,0.00049315,120]
[355659637,1741444242398,-833.51,0.00049315,120]
[355659638,1741444242407,-833.51,0.00049315,120]
[355659639,1741444242416,-833.51,0.00049315,120]
[355659640,1741444242426,-833.51,0.00049315,120]
[355659641,1741444242435,-500.0,0.00049315,120]
[355659642,1741444242444,-833.51,0.00049315,120]
[355659643,1741444242455,-833.51,0.00049315,120]
[355659644,1741444242464,-833.51,0.00049315,120]
[355659645,1741444242475,-833.51,0.00049315,120]
[355659646,1741444242484,-833.51,0.00049315,120]
[355659647,1741444242494,-833.51,0.00049315,120]
[355659648,1741444242504,-833.51,0.00049315,120]
[355659649,1741444242514,-833.51,0.00049315,120]
[355659650,1741444242523,-507.00040383,0.00049315,120]
[355659651,1741444242533,-833.51,0.00049315,120]
[355659652,1741444242543,-833.51,0.00049315,120]
[355659653,1741444242553,-833.51,0.00049315,120]
[355659654,1741444242562,-833.51,0.00049315,120]
[355659655,1741444242572,-833.69297275,0.00049315,120]
[355659656,1741444242582,-503.66914482,0.00049315,120]
[355659657,1741444242591,-500.0,0.00049315,120]
[355659658,1741444242600,-509.20289645,0.00049315,120]
[355659659,1741444242609,-586.67551706,0.00049315,120]
[355659660,1741444242619,-500.0,0.00049315,120]
[355659661,1741444242628,-516.22538291,0.00049315,120]
[355659662,1741444242638,-500.0,0.00049315,120]
[355659663,1741444242648,-500.0,0.00049315,120]
[355659664,1741444242659,-513.39043369,0.00049315,120]
[355659665,1741444242668,-500.0,0.00049315,120]
[355659666,1741444242678,-512.96205649,0.00049315,120]
[355659667,1741444242688,-505.97119795,0.00049315,120]
[355659668,1741444242697,-523.73678083,0.00049315,120]
[355659669,1741444242708,-156.233894,0.00049315,120]
[355659670,1741444242718,-307.19046025,0.00049315,120]
[355659671,1741444242728,-500.0,0.00049315,120]
[355659672,1741444242737,-151.0,0.00049315,120]
[355659673,1741444242747,-526.9089251,0.00049315,120]
[355659674,1741444242756,-151.0,0.00049315,120]
[355659675,1741444242765,-500.0,0.00049315,120]
[355659676,1741444242775,-151.0,0.00049315,120]
[355659677,1741444242785,-151.0,0.00049315,120]
[355659678,1741444242796,-506.81447175,0.00049315,120]
[355659679,1741444242806,-500.0,0.00049315,120]
[355659680,1741444242815,-513.2813966,0.00049315,120]
[355659681,1741444242825,-505.38054331,0.00049315,120]
[355659682,1741444242835,-511.95814668,0.00049315,120]
[355659683,1741444242845,-500.0,0.00049315,120]
[355659684,1741444242854,-180.14888899,0.00049315,120]
[355659685,1741444242864,-508.69331106,0.00049315,120]
[355659686,1741444242874,-500.0,0.00049315,120]
[355659687,1741444242883,-542.81784306,0.00049315,120]
[355659689,1741444242893,-500.0,0.00049315,120]
[355659691,1741444242903,-519.53629376,0.00049315,120]
[355659692,1741444242912,-500.0,0.00049315,120]
[355659693,1741444242921,-360.60368396,0.00049315,120]
[355659694,1741444242931,-500.0,0.00049315,120]
[355659695,1741444242941,-500.0,0.00049315,2]
[355659697,1741444242952,-1000.0,0.00049315,120]
[355659698,1741444242961,-840.48,0.00049315,120]
[355659699,1741444242971,-840.48,0.00049315,120]
[355659700,1741444242980,-840.48,0.00049315,120]
[355659701,1741444242990,-840.48,0.00049315,120]
[355659702,1741444243000,-840.48,0.00049315,120]
[355659703,1741444243010,-840.48,0.00049315,120]
[355659704,1741444243020,-840.48,0.00049315,120]
[355659705,1741444243030,-840.48,0.00049315,120]
[355659706,1741444243040,-840.48,0.00049315,120]
[355659707,1741444243050,-840.48,0.00049315,120]
[355659708,1741444243059,-840.48,0.00049315,120]
[355659709,1741444243070,-840.48,0.00049315,120]
[355659710,1741444243080,-840.48,0.00049315,120]
[355659711,1741444243089,-840.48,0.00049315,120]
[355659712,1741444243099,-840.48,0.00049315,120]
[355659713,1741444243108,-840.48,0.00049315,120]
[355659714,1741444243119,-840.48,0.00049315,120]
[355659715,1741444243128,-840.48,0.00049315,120]
[355659716,1741444243138,-840.48,0.00049315,120]
[355659717,1741444243147,-840.48,0.00049315,120]
[355659718,1741444243157,-840.48,0.00049315,120]
[355659719,1741444243166,-840.48,0.00049315,120]
[355659720,1741444243176,-840.48,0.00049315,120]
[355659721,1741444243185,-840.6047707,0.00049315,120]
[355659722,1741444243195,-500.0,0.00049315,120]
[355659723,1741444243206,-500.0,0.00049315,120]
[355659724,1741444243215,-536.4954443,0.00049315,120]
[355659725,1741444243225,-521.6795734,0.00049315,120]
[355659726,1741444243235,-412.19156865,0.00049315,120]
[355659727,1741444243245,-506.72108897,0.00049315,120]
[355659728,1741444243254,-500.0,0.00049315,120]
[355659729,1741444243263,-151.0,0.00049315,120]
[355659730,1741444243273,-151.0,0.00049315,120]
[355659731,1741444243283,-500.0,0.00049315,120]
[355659732,1741444243292,-301.5011335,0.00049315,120]
[355659733,1741444243302,-500.0,0.00049315,120]
[355659734,1741444243311,-500.0,0.00049315,120]
[355659735,1741444243321,-500.0,0.00049315,120]